bitfinex/quotes_ETHUSD_20260130
["timestamp","ask_amount","ask_price","bid_price","bid_amount"]
[1769762659557,8.03527698,2735.1,2733.5,1.05201862]
[1769762659751,8.03527698,2734.9,2733.5,1.05201862]
[1769762661062,8.175441,2734.8,2733.5,1.05201862]
[1769762661265,8.03527698,2734.3,2732.5,7.40743592]
[1769762661463,2.63347267,2734.1,2732.7,7.40743592]
[1769762661652,0.1024,2734.3,2732.7,7.40743592]
[1769762661848,2.63347267,2734.7,2732.8,7.40743592]
[1769762662034,0.34004727,2734.6,2733.0,7.40743592]
[1769762662538,2.75492432,2734.9,2733.0,7.40743592]
[1769762662738,2.75592432,2734.9,2733.0,7.40743592]
[1769762663762,2.77477783,2734.9,2733.2,7.40743592]
[1769762664566,0.1034,2734.9,2733.2,7.40743592]
[1769762664737,0.001,2734.9,2733.2,7.40743592]
[1769762664932,0.001,2734.9,2733.4,7.40743592]
[1769762665988,2.7095073,2734.9,2733.4,7.40743592]
[1769762666163,0.001,2734.9,2733.4,7.40743592]
[1769762666755,2.7276906,2734.9,2733.4,7.40743592]
[1769762674251,3.64180384,2734.9,2733.4,7.40743592]
[1769762674440,0.4515216,2734.8,2733.4,8.22992387]
[1769762674637,0.07710122,2734.5,2733.2,0.002]
[1769762674875,0.001,2734.7,2733.3,7.40743592]
[1769762678270,0.001,2734.7,2733.3,8.17443592]
[1769762678582,0.001,2734.7,2733.5,6.76893895]
[1769762678784,0.001,2734.7,2733.7,6.76893895]
[1769762679679,0.001,2734.7,2733.9,6.76893895]
[1769762680552,0.1024,2735.4,2733.6,0.6768939]
[1769762680553,0.1024,2735.4,2734.1,6.76843895]
[1769762680773,0.1024,2735.6,2734.1,6.76843895]
[1769762681449,8.175441,2736.2,2734.5,6.76843895]
[1769762681783,3.65451222,2736.4,2734.5,6.76843895]
[1769762681784,0.91363086,2736.4,2734.5,6.76843895]
[1769762682171,8.175441,2736.7,2734.7,6.76843895]
[1769762682361,4.42093052,2736.8,2734.9,6.76843895]
[1769762682362,8.277841,2736.5,2734.9,6.76843895]
[1769762682563,1.25963715,2736.6,2734.9,6.76843895]
[1769762682564,0.1024,2736.3,2734.9,6.76843895]
[1769762682978,2.387145,2736.2,2734.9,6.76843895]
[1769762684184,2.105352,2736.2,2734.9,6.76843895]
[1769762684490,0.1024,2736.3,2734.9,6.76843895]
[1769762684786,0.1024,2736.3,2734.9,7.51296724]
[1769762685502,0.1024,2736.5,2734.9,7.51296724]
[1769762687283,0.91350161,2736.8,2735.1,6.76843895]
[1769762687588,0.1024,2736.7,2735.1,6.76843895]
[1769762688158,0.001,2736.1,2735.1,6.76843895]
[1769762689260,0.001,2736.1,2735.1,7.51973567]
[1769762699518,0.001,2735.9,2735.1,7.51973567]
[1769762703018,0.001,2735.9,2735.1,6.76843895]
[1769762707697,0.001,2735.9,2734.9,6.76843895]
[1769762707894,8.175441,2735.8,2734.9,6.76843895]
[1769762708198,0.001,2735.9,2734.9,6.76843895]
[1769762711704,0.001,2735.7,2734.9,6.76843895]
[1769762711906,0.81891698,2735.9,2734.5,6.76843895]
[1769762712109,0.81891698,2735.9,2734.7,6.76843895]
[1769762714209,0.1024,2735.9,2734.7,6.76843895]
[1769762715308,0.9137343,2736.1,2734.7,6.76843895]
[1769762716322,1.0160759,2736.2,2734.7,6.76843895]
[1769762717658,0.36244486,2736.9,2734.7,6.76843895]
[1769762717862,0.1024,2736.7,2734.9,6.76843895]
[1769762718016,0.91347559,2736.8,2734.9,6.76843895]
[1769762718550,2.420859,2736.6,2734.9,6.76843895]
[1769762720150,1.01592336,2736.7,2734.9,6.76843895]
[1769762720353,5.344528,2736.6,2734.9,6.76843895]
[1769762720521,0.63604514,2736.5,2735.1,6.76843895]
[1769762720723,5.344528,2736.6,2735.1,6.76843895]
[1769762721837,0.1024,2736.7,2735.1,6.76843895]
[1769762723433,0.001,2736.4,2735.1,6.76843895]
[1769762725564,0.001,2736.4,2735.2,6.76843895]
[1769762727777,0.001,2736.4,2735.5,6.76843895]
[1769762727947,0.001,2736.4,2735.7,6.76843895]
[1769762728149,5.054048,2737.3,2736.4,6.76793895]
[1769762728365,0.1024,2737.3,2736.4,6.76793895]
[1769762728680,4.960549,2737.8,2736.4,6.76793895]
[1769762728843,0.1024,2737.6,2736.4,6.76793895]
[1769762729376,0.1024,2737.6,2736.4,7.44473285]
[1769762729676,2.346169,2737.9,2736.4,7.44473285]
[1769762730971,0.91313984,2737.9,2736.4,7.44473285]
[1769762731271,4.322566,2737.8,2736.4,7.44473285]
[1769762732578,8.175441,2737.4,2736.4,6.76793895]
[1769762732783,8.175441,2737.2,2735.6,6.76793895]
[1769762733001,0.1024,2737.4,2735.8,6.76793895]
[1769762733150,4.817033,2737.8,2736.2,6.76793895]
[1769762733347,0.03,2738.0,2735.8,0.2335703]
[1769762733348,0.57301416,2737.7,2736.4,6.76793895]
[1769762733543,0.03,2738.0,2736.4,6.76793895]
[1769762733812,2.627187,2737.9,2736.4,6.76793895]
[1769762734256,0.03,2738.0,2736.4,6.76793895]
[1769762734460,2.627187,2737.9,2736.4,6.76793895]
[1769762734659,2.631512,2737.9,2736.4,6.76793895]
[1769762734981,0.36769628,2737.9,2736.6,6.76793895]
[1769762735294,5.208896,2737.9,2736.6,6.76793895]
[1769762735874,0.1024,2737.8,2736.6,6.76793895]
[1769762736187,8.175441,2737.7,2736.6,6.76793895]
[1769762736552,8.175441,2737.6,2736.6,6.76793895]
[1769762737059,7.48375,2737.6,2736.6,6.76793895]
[1769762737285,0.748475,2737.5,2736.6,6.76793895]
[1769762737467,6.630441,2737.5,2736.6,6.76793895]
[1769762737985,0.91419746,2737.7,2736.6,6.76793895]
[1769762738153,3.961786,2737.6,2736.6,6.76793895]
[1769762743179,0.001,2737.7,2736.6,6.76793895]
[1769762747155,8.175441,2737.6,2736.6,6.76793895]
[1769762747356,0.8176441,2737.5,2736.6,6.76793895]
[1769762747558,8.175441,2737.6,2736.6,6.76793895]
[1769762748589,0.913242,2737.5,2736.6,6.76793895]
[1769762749158,0.914242,2737.5,2736.6,6.76793895]
[1769762749399,0.1024,2737.4,2736.6,6.76793895]
[1769762750794,8.175441,2737.4,2736.6,6.76793895]
[1769762750996,0.90897033,2737.3,2736.6,6.76793895]
[1769762751196,0.91426228,2737.5,2736.6,6.76793895]
[1769762751197,0.1024,2737.4,2736.6,6.76793895]
[1769762752900,0.1024,2737.0,2735.6,6.76793895]
[1769762754796,0.1024,2736.6,2735.6,6.76793895]
[1769762754981,0.1024,2736.6,2735.3,6.76993895]
[1769762754982,0.1024,2736.4,2735.3,6.76993895]
[1769762755187,0.1024,2736.2,2735.3,6.76993895]
[1769762755386,8.175441,2736.8,2735.3,6.76993895]
[1769762755598,0.91339249,2737.1,2735.4,6.76793895]
[1769762755897,0.1024,2737.0,2735.4,6.76793895]
[1769762757005,0.1024,2737.1,2735.4,6.76793895]
[1769762757211,0.91333343,2737.3,2735.3,0.002]
[1769762757212,0.1024,2737.3,2735.6,6.76793895]
[1769762757406,2.559503,2737.4,2735.6,6.76793895]
[1769762757589,0.1034,2737.5,2735.6,6.76793895]
[1769762757905,2.593799,2737.4,2735.6,6.76793895]
[1769762758111,0.2697199,2737.3,2735.8,6.76793895]
[1769762758312,3.356891,2737.4,2735.8,6.76793895]
[1769762759709,0.91328494,2737.4,2735.8,6.76793895]
[1769762760207,0.91424934,2737.5,2735.8,6.76793895]
[1769762760509,0.1024,2737.4,2735.8,6.76793895]
[1769762761017,0.001,2737.5,2736.2,6.76793895]
[1769762761185,0.001,2737.5,2736.4,6.76793895]
[1769762762111,0.001,2737.5,2736.3,0.6767939]
[1769762762112,0.32025526,2738.6,2737.1,6.75243895]
[1769762762411,0.1024,2738.4,2737.1,6.75243895]
[1769762763908,0.1024,2738.3,2737.1,6.75243895]
[1769762764109,0.1024,2738.3,2737.3,6.75243895]
[1769762765708,0.1024,2738.3,2737.0,6.75243895]
[1769762765709,1.01544189,2738.1,2737.0,6.75243895]
[1769762765878,8.175441,2738.0,2737.0,6.75243895]
[1769762766278,0.1024,2737.9,2736.4,6.75243895]
[1769762766515,0.1024,2737.9,2735.9,0.766]
[1769762766516,0.1024,2737.7,2736.6,6.75243895]
[1769762766704,8.175441,2737.4,2736.6,6.75243895]
[1769762767009,0.1024,2737.1,2736.1,6.75243895]
[1769762767220,0.1024,2736.9,2735.8,6.75443895]
[1769762767388,0.1024,2736.7,2735.8,6.75443895]
[1769762767589,0.1024,2736.5,2735.8,0.002]
[1769762767797,0.1024,2736.8,2735.8,0.002]
[1769762768108,0.1024,2736.6,2735.8,0.002]
[1769762768610,0.1024,2736.6,2735.9,6.75243895]
[1769762768813,0.1024,2736.6,2736.0,6.75443895]
[1769762769617,0.1024,2736.6,2736.0,0.002]
[1769762770111,0.47803421,2736.6,2736.0,0.002]
[1769762770310,0.91330873,2737.3,2736.0,6.75443895]
[1769762770608,0.1024,2736.9,2736.0,6.75443895]
[1769762770810,0.1024,2737.0,2736.0,6.75443895]
[1769762772628,0.1024,2736.9,2736.0,6.75443895]
[1769762772979,8.175441,2736.8,2736.0,6.75443895]
[1769762773179,0.8277841,2736.7,2736.0,6.75443895]
[1769762773382,8.175441,2736.8,2736.0,6.75443895]
[1769762773622,0.1024,2736.7,2736.0,6.75443895]
[1769762773833,0.1024,2736.5,2735.8,0.002]
[1769762774188,8.175441,2736.4,2735.4,6.75243895]
[1769762774737,9.1914835,2736.3,2736.2,0.002]
[1769762774891,9.1914835,2736.3,2735.3,0.002]
[1769762774892,0.1024,2736.2,2735.3,0.002]
[1769762776689,0.91370929,2736.1,2735.3,0.002]
[1769762779303,1.01610107,2736.2,2735.3,6.75443895]
[1769762779522,1.78208304,2736.2,2735.3,6.75443895]
[1769762782824,0.1024,2736.2,2735.3,6.75443895]
[1769762783006,6.42,2736.6,2735.3,7.42988285]
[1769762783208,0.1024,2736.5,2735.3,7.42988285]
[1769762783817,3.65325422,2737.3,2735.3,7.42988285]
[1769762784019,7.20505,2737.1,2735.3,7.42988285]
[1769762784216,0.1024,2736.9,2735.5,6.75243895]
[1769762784725,0.1024,2736.7,2735.5,6.75243895]
[1769762785023,8.175441,2736.6,2735.5,6.75243895]
[1769762785231,1.26535161,2737.2,2735.5,6.75243895]
[1769762785409,0.1024,2736.8,2735.5,6.75243895]
[1769762785606,8.175441,2736.5,2735.5,6.75243895]
[1769762785798,0.91360912,2736.4,2735.5,6.75243895]
[1769762786406,0.1024,2736.6,2735.5,6.75243895]
[1769762786607,1.01596636,2736.6,2735.5,6.75243895]
[1769762786831,0.1024,2736.6,2735.5,6.75243895]
[1769762787439,0.1024,2736.6,2735.5,6.75443895]
[1769762787843,0.001,2736.0,2735.5,6.75443895]
[1769762788044,0.001,2736.0,2735.5,7.43008285]
[1769762793910,0.1024,2737.0,2735.6,6.75193895]
[1769762794136,3.65328457,2737.3,2735.6,6.75193895]
[1769762794137,0.1024,2737.2,2735.6,6.75193895]
[1769762794338,0.91330873,2737.3,2735.6,6.75193895]
[1769762794540,2.627973,2737.0,2735.6,6.75193895]
[1769762794845,0.36437519,2737.0,2735.8,6.75193895]
[1769762795149,2.627973,2737.0,2735.8,6.75193895]
[1769762795309,0.1024,2737.1,2735.8,6.75193895]
[1769762795828,0.1024,2737.0,2735.8,6.75193895]
[1769762796647,0.91344221,2736.9,2735.8,6.75193895]
[1769762797347,8.175441,2736.8,2735.8,6.75193895]
[1769762797664,0.1024,2736.6,2735.8,6.75193895]
[1769762799547,1.01596414,2736.6,2735.8,6.75193895]
[1769762800851,0.001,2736.4,2736.0,0.002]
[1769762802549,0.001,2736.4,2736.0,6.75393895]
[1769762803661,0.001,2736.4,2736.0,0.002]
[1769762804029,0.001,2736.4,2736.0,6.75393895]
[1769762804742,3.65278623,2737.7,2736.1,6.75143895]
[1769762804935,4.834849,2737.6,2736.1,6.75143895]
[1769762805129,0.1024,2737.5,2736.1,6.75143895]
[1769762805327,7.283515,2737.2,2736.1,6.75143895]
[1769762806527,0.91344221,2736.9,2736.1,6.75143895]
[1769762806727,0.1024,2736.6,2736.0,0.002]
[1769762807735,0.1024,2736.8,2736.0,6.75343895]
[1769762807932,0.1024,2736.6,2736.0,6.75343895]
[1769762808333,6.930978,2737.4,2736.0,6.75343895]
[1769762808538,4.242841,2737.1,2736.0,6.75343895]
[1769762808736,0.1024,2737.2,2736.0,6.75343895]
[1769762808737,4.328962,2737.2,2736.0,6.75343895]
[1769762808934,0.1024,2737.2,2736.0,6.75343895]
[1769762809350,2.646579,2737.4,2736.0,6.75343895]
[1769762809660,0.91326118,2737.5,2736.0,6.75343895]
[1769762809661,0.1024,2737.3,2736.0,6.75343895]
[1769762809863,0.1024,2737.3,2736.2,6.75143895]
[1769762812167,0.1024,2737.4,2736.2,6.75143895]
[1769762813241,0.001,2737.0,2736.2,6.75143895]
[1769762813435,0.31526415,2737.8,2736.3,6.75143895]
[1769762813654,0.1024,2737.7,2736.5,6.75143895]
[1769762816345,0.1024,2737.5,2736.5,6.75143895]
[1769762816546,8.175441,2737.5,2736.5,6.75143895]
[1769762816750,0.1024,2737.5,2736.5,6.75143895]
[1769762816943,0.1024,2737.3,2736.2,6.75143895]
[1769762817247,9.44072588,2737.4,2736.2,6.75143895]
[1769762817248,8.175441,2736.9,2736.2,6.75143895]
[1769762817447,0.1024,2737.0,2736.2,6.75143895]
[1769762818655,8.175441,2736.9,2736.2,6.75143895]
[1769762819067,0.91346749,2736.9,2736.2,6.75143895]
[1769762820682,0.1024,2736.8,2736.2,6.75143895]
[1769762821383,0.37562355,2736.7,2736.2,6.75143895]
[1769762821686,1.0158976,2736.8,2736.2,6.75143895]
[1769762823292,3.6536777,2737.0,2736.2,6.75143895]
[1769762823293,0.1024,2736.9,2736.2,6.75143895]
[1769762825689,0.1024,2736.9,2736.4,6.75343895]
[1769762828090,0.91344302,2736.9,2736.4,6.75343895]
[1769762828289,1.01583226,2737.0,2736.4,6.75343895]
[1769762828489,0.47717407,2736.9,2736.4,6.75343895]
[1769762830111,1.39061892,2736.9,2736.4,6.75343895]
[1769762830812,0.47717407,2736.9,2736.4,6.75343895]
[1769762830980,1.39061921,2736.9,2736.4,6.75343895]
[1769762834800,0.47717407,2736.9,2736.4,6.75343895]
[1769762835313,1.39061651,2736.9,2736.4,6.75343895]
[1769762837403,0.50442545,2736.8,2736.4,6.75343895]
[1769762838523,0.50442545,2736.8,2736.6,0.002]
[1769762840822,0.50442545,2736.8,2735.8,0.002]
[1769762840823,1.01590897,2736.7,2734.1,6.53135895]
[1769762840992,0.1024,2736.5,2734.1,7.0489614]
[1769762841192,0.33324,2736.4,2734.5,6.53135895]
[1769762845895,3.23,2736.3,2734.5,6.53135895]
[1769762847225,0.50442545,2736.8,2734.9,4.91635895]
[1769762847412,0.1024,2737.0,2734.9,4.91635895]
[1769762847615,0.1024,2737.0,2735.2,4.91635895]
[1769762848593,0.1024,2737.0,2735.5,4.91635895]
[1769762848795,0.001,2737.2,2735.8,4.91635895]
[1769762849091,0.001,2737.2,2735.3,0.2335703]
[1769762849092,10.07239775,2738.0,2736.4,4.91585895]
[1769762849093,7.33309621,2738.0,2736.4,4.91585895]
[1769762849294,0.1024,2737.7,2736.4,4.91585895]
[1769762849522,0.766,2738.3,2736.4,4.91585895]
[1769762849720,0.766,2738.6,2736.4,4.91585895]
[1769762849926,0.1024,2738.2,2736.4,4.91585895]
[1769762850497,1.01542526,2738.2,2736.4,4.91585895]
[1769762852230,0.1024,2738.5,2736.4,4.91585895]
[1769762852529,0.1024,2738.5,2735.9,1.40540923]
[1769762852530,2.0,2738.7,2736.6,4.75822687]
[1769762852829,0.1024,2738.5,2736.8,4.75822687]
[1769762854228,0.91294186,2738.4,2736.8,4.75822687]
[1769762854428,0.1024,2738.3,2736.8,4.75822687]
[1769762854797,0.1024,2738.1,2736.8,4.75822687]
[1769762855592,0.91293281,2738.5,2736.8,4.75822687]
[1769762855797,2.91274187,2739.0,2737.0,4.75822687]
[1769762856131,0.1024,2738.6,2737.0,4.75822687]
[1769762856427,1.01528199,2738.6,2737.0,4.75822687]
[1769762857230,1.01526616,2738.7,2737.0,4.75822687]
[1769762859332,0.1024,2738.3,2737.0,4.75822687]
[1769762859530,2.0,2738.0,2737.0,4.75822687]
[1769762859699,0.1024,2738.0,2737.0,4.75822687]
[1769762860308,0.1024,2737.8,2737.0,4.75822687]
[1769762860717,0.21024,2738.2,2737.0,4.75822687]
[1769762861000,0.1024,2738.1,2737.0,4.75822687]
[1769762861564,0.1024,2738.6,2737.0,4.75822687]
[1769762861769,0.1024,2738.7,2737.0,4.75822687]
[1769762862225,2.0,2738.6,2737.3,4.75822687]
[1769762862431,0.1024,2738.4,2737.3,4.75822687]
[1769762863163,0.001,2738.5,2737.3,5.23424956]
[1769762867267,0.001,2738.5,2737.3,4.75822687]
[1769762870253,2.0,2738.4,2737.3,4.75822687]
[1769762870457,0.91295926,2738.4,2737.3,4.75822687]
[1769762871059,0.1024,2738.4,2737.3,4.75822687]
[1769762872535,0.91295603,2738.4,2737.3,4.75822687]
[1769762874238,0.45655902,2738.3,2737.3,4.75822687]
[1769762875242,0.45655902,2738.3,2737.6,4.75822687]
[1769762875568,0.001,2738.2,2737.6,4.75822687]
[1769762880846,0.001,2738.2,2737.6,4.70822687]
[1769762881976,2.0,2738.1,2737.5,0.002]
[1769762882190,0.2001,2738.0,2737.5,0.002]
[1769762882369,2.0,2738.1,2737.5,0.002]
[1769762882881,0.91402794,2738.2,2737.5,4.73522687]
[1769762883057,0.001,2738.2,2737.5,4.73522687]
[1769762887817,0.001,2738.5,2737.6,4.73272687]
[1769762890699,2.0,2739.0,2737.7,4.73222687]
[1769762890865,0.21024,2739.0,2737.9,4.73222687]
[1769762891061,2.0,2739.0,2737.9,4.73222687]
[1769762892275,0.91274873,2739.0,2737.9,4.73222687]
[1769762896306,2.0,2738.9,2737.9,4.73222687]
[1769762897193,1.01512548,2739.1,2737.9,4.73222687]
[1769762897399,3.65074294,2739.2,2737.9,4.73222687]
[1769762897400,2.1024,2739.2,2737.9,4.73222687]
[1769762897602,0.1024,2739.0,2738.1,4.73222687]
[1769762898917,0.1024,2739.3,2738.1,4.73222687]
[1769762899121,0.001,2738.8,2738.1,4.73222687]
[1769762899692,0.1024,2739.3,2738.2,4.73172687]
[1769762899893,0.1024,2739.3,2738.4,4.73172687]
[1769762904228,0.1024,2739.4,2738.4,4.73172687]
[1769762905098,0.33862613,2739.6,2738.4,4.73172687]
[1769762907530,1.25117643,2739.6,2738.4,4.73172687]
[1769762907718,0.33862613,2739.6,2738.4,4.73172687]
[1769762907920,0.33862613,2739.6,2738.4,5.09083977]
[1769762908535,1.25116858,2739.6,2738.4,5.09083977]
[1769762908732,0.33862613,2739.6,2738.4,5.09083977]
[1769762909033,1.25117448,2739.6,2738.4,4.73172687]
[1769762909414,0.1024,2739.5,2738.4,4.73172687]
[1769762910203,0.1024,2739.5,2738.4,4.68172687]
[1769762910406,2.0,2739.4,2738.4,4.68172687]
[1769762910634,0.1024,2739.5,2738.4,4.68172687]
[1769762910854,0.1024,2739.5,2738.4,5.14989956]
[1769762911333,1.01500657,2739.5,2738.7,4.70672687]
[1769762911628,0.001,2739.4,2738.7,4.70467709]
[1769762917439,0.001,2739.4,2738.7,4.65467709]
[1769762917751,0.1034,2739.4,2738.6,0.002]
[1769762917919,0.1024,2739.2,2738.6,0.002]
[1769762918543,0.91270855,2739.1,2738.6,0.002]
[1769762918730,0.46658631,2739.0,2738.6,0.002]
[1769762919851,1.01509376,2739.2,2738.6,0.002]
[1769762921151,1.01509376,2739.2,2738.6,3.05005402]
[1769762922144,0.1024,2739.2,2738.6,3.05005402]
[1769762922343,0.001,2739.4,2738.6,3.05005402]
[1769762923554,0.001,2739.0,2738.6,3.05005402]
[1769762928957,0.001,2739.0,2738.4,3.867378]
[1769762931129,0.001,2739.0,2738.4,0.002]
[1769762931529,0.1024,2738.8,2738.4,0.002]
[1769762931863,0.1024,2738.4,2737.8,0.002]
[1769762932164,0.1024,2738.0,2737.8,0.002]
[1769762935464,0.1024,2738.0,2737.7,2e-08]
[1769762935669,1.01543136,2738.2,2737.7,2e-08]
[1769762935874,1.01543136,2738.2,2737.5,0.002]
[1769762936073,0.1024,2738.0,2737.5,0.002]
[1769762936231,1.01548029,2738.0,2737.5,0.002]
[1769762936650,0.1024,2738.0,2737.5,0.002]
[1769762936857,0.1024,2738.0,2737.5,1.93468901]
[1769762937394,1.01547747,2738.0,2737.5,1.93468901]
[1769762937995,0.1024,2738.0,2737.5,1.93468901]
[1769762938301,1.01548034,2738.0,2737.5,1.93468901]
[1769762938895,0.1024,2738.0,2737.5,1.93468901]
[1769762942885,1.01547536,2738.0,2737.5,1.93468901]
[1769762943671,0.1024,2738.0,2737.5,1.93468901]
[1769762946265,1.01547999,2738.0,2737.5,1.93468901]
[1769762946467,0.1024,2738.0,2737.5,1.93468901]
[1769762947170,0.1024,2738.0,2737.7,0.002]
[1769762952179,0.1024,2738.0,2737.6,3e-08]
[1769762955112,0.22481802,2737.9,2737.6,3e-08]
[1769762957213,6.42,2738.4,2737.6,3e-08]
[1769762957214,6.48831095,2739.0,2737.6,3e-08]
[1769762957410,0.1024,2738.4,2737.6,3e-08]
[1769762958595,0.1024,2738.5,2737.6,3e-08]
[1769762960314,0.001,2737.8,2737.6,3e-08]
[1769762983272,0.001,2737.8,2737.1,0.96634451]
[1769762983974,0.001,2737.6,2737.1,0.96634451]
[1769762986345,0.57301942,2738.8,2737.2,0.96534451]
[1769762986549,0.1024,2738.7,2737.2,0.96534451]
[1769762987080,1.01525425,2738.7,2737.2,0.96534451]
[1769762987982,1.73682757,2738.7,2737.2,0.96534451]
[1769762989150,0.1024,2738.8,2737.2,0.96534451]
[1769762989661,0.89697301,2738.8,2737.2,0.96534451]
[1769762990379,0.1024,2738.8,2737.2,0.96534451]
[1769762990597,0.001,2739.0,2737.7,0.96534451]
[1769762990753,0.001,2739.0,2738.0,0.96534451]
[1769762991452,2.17627559,2739.5,2738.3,0.96484451]
[1769762991453,0.39694639,2739.5,2738.3,0.96484451]
[1769762991654,0.39694639,2739.5,2738.6,0.96484451]
[1769762991852,0.39694639,2739.5,2738.8,0.96484451]
[1769762992158,0.1024,2740.2,2738.9,0.91136497]
[1769762992695,0.1024,2740.2,2738.7,0.75333437]
[1769762992696,0.72327306,2741.4,2739.4,6.56849915]
[1769762992851,0.39984256,2741.4,2739.8,0.91136497]
[1769762993382,0.91202539,2741.2,2739.8,0.91136497]
[1769762994281,0.1024,2740.9,2739.8,0.86136497]
[1769762994486,0.21024,2740.8,2739.8,0.86136497]
[1769762997097,0.06991466,2740.8,2740.0,0.91136497]
[1769762997277,0.0190972,2741.1,2739.6,0.91136497]
[1769762997601,0.39984256,2741.4,2739.7,0.91136497]
[1769762998463,0.1024,2741.9,2739.7,0.91136497]
[1769762998655,0.91163443,2742.4,2739.9,0.91136497]
[1769762998977,2.0,2742.2,2739.9,0.91136497]
[1769762999175,1.05551464,2742.0,2739.9,0.91136497]
[1769762999376,1.05551464,2741.6,2739.9,0.91136497]
[1769762999575,1.05551464,2741.4,2739.9,0.91136497]
[1769763000155,0.95311464,2741.0,2739.9,0.91136497]
[1769763000359,1.05551464,2740.8,2737.9,7.86606399]
[1769763000558,1.23456,2741.5,2737.9,7.86606399]
[1769763000559,2.0,2740.5,2738.0,1.67736497]
[1769763000756,1.05551464,2740.6,2738.1,0.91136497]
[1769763001183,1.05551464,2740.6,2738.3,0.91136497]
[1769763001184,0.1024,2740.6,2738.3,0.91136497]
[1769763001710,0.91221274,2740.6,2738.3,0.91136497]
[1769763001861,1.05551464,2740.2,2738.3,0.91136497]
[1769763002053,2.0,2740.1,2738.3,0.91136497]
[1769763002778,0.1024,2740.0,2738.3,0.91136497]
[1769763002983,0.1024,2740.1,2738.3,0.91136497]
[1769763003603,0.1024,2739.9,2738.3,0.91136497]
[1769763005216,0.19679234,2739.8,2738.3,0.91136497]
[1769763006029,2.0,2740.3,2738.3,0.91136497]
[1769763006320,0.1024,2740.5,2738.3,0.91136497]
[1769763006838,1.91014535,2741.1,2738.9,1.97718209]
[1769763007127,2.0,2740.7,2739.1,1.97718209]
[1769763008053,0.912209,2740.6,2739.1,1.97718209]
[1769763008378,0.001,2739.7,2739.1,1.97718209]
[1769763008580,0.001,2739.7,2739.0,0.19771821]
[1769763008581,0.001,2739.7,2739.3,1.97718209]
[1769763010320,0.001,2739.7,2739.2,0.21749003]
[1769763010528,0.001,2739.7,2738.4,1.97718209]
[1769763014517,1.91014535,2739.6,2738.4,1.97718209]
[1769763015404,0.91257528,2739.5,2738.4,1.97718209]
[1769763015601,0.28227206,2739.4,2738.4,1.97718209]
[1769763018338,1.19488271,2739.4,2738.4,1.97718209]
[1769763018526,3.10502806,2739.4,2738.1,1.97718209]
[1769763019235,2.01254535,2739.3,2738.1,1.97718209]
[1769763019539,1.91014535,2739.2,2737.8,1.97718209]
[1769763019702,0.20125453,2739.1,2738.0,1.97718209]
[1769763020502,2.11139988,2739.1,2738.0,1.97718209]
[1769763020709,0.20125453,2739.1,2737.9,1.97718209]
[1769763020911,0.20125453,2739.1,2738.0,0.002]
[1769763021214,0.20125453,2739.1,2738.0,1.97918209]
[1769763021525,0.20125453,2739.1,2738.2,1.97718209]
[1769763024145,1.91014535,2739.0,2738.0,0.002]
[1769763024302,1.91014535,2738.7,2738.0,0.002]
[1769763024498,1.11396664,2739.1,2737.8,0.002]
[1769763024499,1.91014535,2738.5,2737.8,0.002]
[1769763024722,1.91014535,2738.5,2737.4,0.002]
[1769763024921,2.10115989,2738.4,2737.4,0.002]
[1769763027332,3.01411169,2738.4,2737.4,0.002]
[1769763028454,2.10115989,2738.4,2737.4,0.002]
[1769763029060,0.19101454,2738.4,2737.4,1.97918209]
[1769763029343,0.1024,2738.9,2737.4,1.97918209]
[1769763029549,0.28227206,2739.4,2737.4,1.97918209]
[1769763029748,0.001,2739.7,2737.4,1.97918209]
[1769763030052,0.001,2739.7,2737.6,1.97718209]
[1769763030254,0.1034,2739.7,2737.6,1.97718209]
[1769763031332,2.01254535,2739.4,2737.6,1.97718209]
[1769763031643,1.0159148,2739.7,2737.6,1.97718209]
[1769763031644,1.91014535,2739.3,2737.6,1.97718209]
[1769763031946,0.19101454,2739.2,2737.8,1.97718209]
[1769763032530,0.1024,2739.4,2737.8,1.97718209]
[1769763032963,0.1024,2739.4,2737.8,1.97918209]
[1769763033561,0.91260979,2739.4,2737.8,1.97918209]
[1769763034069,2.925142,2739.5,2737.8,1.97918209]
[1769763034384,0.1024,2739.4,2737.8,1.97918209]
[1769763034555,0.20125453,2739.3,2737.9,2.19487212]
[1769763035765,1.91014535,2738.9,2737.9,0.21769003]
[1769763035938,1.91014535,2738.9,2737.8,0.002]
[1769763036642,2.82293471,2738.9,2737.8,0.002]
[1769763037050,1.91014535,2738.9,2737.8,0.002]
[1769763038376,2.82292076,2738.9,2737.8,0.002]
[1769763038581,1.91014535,2738.9,2737.8,0.002]
[1769763038769,0.28228977,2738.8,2737.8,0.002]
[1769763039171,4.17846927,2738.8,2737.8,0.002]
[1769763039373,2.98336415,2738.7,2737.8,0.002]
[1769763040683,0.28228977,2738.8,2737.8,0.002]
[1769763041067,0.28228977,2738.8,2737.8,3.08760606]
[1769763045190,0.28228977,2738.8,2737.8,0.002]
[1769763045590,0.28228977,2738.8,2737.8,3.08760606]
[1769763045754,0.28228977,2738.8,2737.8,3.39636667]
[1769763046089,0.1034,2739.2,2737.8,3.39636667]
[1769763048658,3.9994469,2739.2,2737.8,3.39636667]
[1769763050770,3.08676415,2739.2,2737.8,3.39636667]
[1769763053803,3.9994409,2739.2,2737.8,3.39636667]
[1769763055390,3.08676415,2739.2,2737.8,3.39636667]
[1769763055576,0.42006919,2739.1,2738.0,3.08560606]
[1769763055893,3.08676415,2739.2,2738.0,3.08560606]
[1769763055894,0.001,2739.2,2738.0,3.08560606]
[1769763058097,0.001,2739.0,2738.0,3.08560606]
[1769763058871,2.98436415,2739.0,2737.9,3.42524273]
[1769763059395,2.98436415,2739.0,2737.8,0.002]
[1769763059396,2.98336415,2738.9,2737.8,0.002]
[1769763059583,0.001,2739.0,2737.8,3.08760606]
[1769763060889,2.98336415,2738.9,2737.8,0.002]
[1769763061800,2.98336415,2738.7,2737.8,0.002]
[1769763062003,3.37298142,2738.6,2737.8,0.002]
[1769763062802,3.37298142,2738.6,2737.5,0.002]
[1769763062803,2.98336415,2738.4,2737.5,0.002]
[1769763066199,0.1024,2738.4,2737.5,0.002]
[1769763066410,3.88698759,2738.4,2737.5,0.002]
[1769763067573,4.79993141,2738.4,2737.5,0.002]
[1769763067772,0.47999314,2738.3,2737.5,0.002]
[1769763068728,4.26458073,2738.3,2737.5,0.002]